bitfinex-derivatives/quotes_BTCF0:USTF0_20241003
["timestamp","ask_amount","ask_price","bid_price","bid_amount"]
[1727919484048,0.081736,61175.0,61173.0,0.08133545]
[1727919484049,0.11,61175.0,61173.0,0.08133545]
[1727919484237,0.081738,61174.0,61172.0,0.08133545]
[1727919484546,0.11,61175.0,61172.0,0.06505728]
[1727919484718,0.169339,61173.0,61172.0,0.06505728]
[1727919485729,0.339339,61173.0,61172.0,0.06505728]
[1727919486323,0.347339,61173.0,61172.0,0.06605728]
[1727919487033,0.347339,61173.0,61172.0,0.06705728]
[1727919487561,0.008,61173.0,61172.0,0.002]
[1727919487731,0.008,61173.0,61172.0,0.20725975]
[1727919488031,0.008,61173.0,61172.0,0.35421351]
[1727919488216,0.008,61173.0,61172.0,0.44141351]
[1727919488828,0.008,61173.0,61172.0,0.17094]
[1727919489327,0.04803449,61173.0,61172.0,0.17094]
[1727919490020,0.16336687,61179.0,61175.0,0.081736]
[1727919490021,0.14638024,61177.0,61175.0,0.081736]
[1727919490331,0.1468167,61178.0,61177.0,0.081734]
[1727919490526,0.22857114,61178.0,61177.0,0.081734]
[1727919490729,0.20891134,61185.0,61179.0,0.081731]
[1727919490730,0.16336687,61180.0,61179.0,0.081731]
[1727919491027,0.19698667,61180.0,61179.0,0.17]
[1727919491326,0.14681101,61182.0,61181.0,0.081728]
[1727919491532,0.05017621,61182.0,61181.0,0.081728]
[1727919491921,0.14674443,61182.0,61181.0,0.081728]
[1727919492124,0.16336687,61185.0,61181.0,1.172088]
[1727919492427,0.13043273,61189.0,61187.0,0.08172]
[1727919492624,0.13043273,61189.0,61182.0,0.85112]
[1727919492625,0.13043273,61189.0,61188.0,0.339519]
[1727919492823,0.03157256,61189.0,61188.0,0.829799]
[1727919493028,0.03157256,61189.0,61188.0,1.429799]
[1727919493734,0.03157256,61189.0,61188.0,0.169519]
[1727919493944,0.30043273,61189.0,61188.0,0.081719]
[1727919494134,0.33746045,61189.0,61188.0,0.001]
[1727919494320,0.13588789,61189.0,61188.0,0.001]
[1727919494520,0.3139681,61189.0,61188.0,0.001]
[1727919494846,0.2322501,61189.0,61188.0,0.082719]
[1727919495224,0.03557516,61189.0,61188.0,0.252719]
[1727919495420,0.13418467,61189.0,61188.0,0.743999]
[1727919495623,0.03557372,61189.0,61188.0,0.743999]
[1727919496821,0.03557372,61189.0,61188.0,1.343999]
[1727919497025,0.170201,61202.0,61198.0,0.081706]
[1727919497436,0.170201,61202.0,61194.0,0.081711]
[1727919497639,0.170201,61202.0,61198.0,0.081705]
[1727919498035,0.19906331,61202.0,61199.0,0.081704]
[1727919499336,0.11736231,61202.0,61201.0,0.081702]
[1727919500134,0.07206231,61202.0,61201.0,0.081702]
[1727919500735,0.02886231,61202.0,61201.0,0.082702]
[1727919500932,0.442495,61206.0,61201.0,0.082702]
[1727919501238,0.081697,61205.0,61201.0,0.082702]
[1727919501634,0.081697,61205.0,61201.0,0.083702]
[1727919502937,0.081697,61205.0,61202.0,0.081699]
[1727919503543,0.081683,61215.0,61211.0,0.081687]
[1727919503733,0.08412956,61219.0,61216.0,0.081681]
[1727919503938,0.08412956,61219.0,61217.0,0.081679]
[1727919503939,0.00245156,61219.0,61217.0,0.081679]
[1727919504143,0.03258929,61219.0,61216.0,0.081681]
[1727919505142,0.03258929,61219.0,61212.0,0.17]
[1727919505444,0.03258929,61219.0,61218.0,0.081679]
[1727919506237,0.08168,61218.0,61216.0,0.002]
[1727919506629,0.08168,61218.0,61216.0,0.001]
[1727919507236,0.08168,61218.0,61216.0,0.002]
[1727919507538,0.08168,61218.0,61216.0,0.082681]
[1727919508343,0.08168,61218.0,61216.0,0.002]
[1727919508344,0.08168,61217.0,61216.0,0.002]
[1727919510738,0.17,61218.0,61210.0,0.0038]
[1727919510739,0.081688,61211.0,61210.0,0.0038]
[1727919510938,0.081682,61216.0,61202.0,0.5308]
[1727919510939,0.081692,61209.0,61202.0,0.175]
[1727919511135,0.081694,61207.0,61206.0,0.081695]
[1727919511350,0.17,61213.0,61202.0,0.17]
[1727919511351,0.081696,61206.0,61202.0,0.2517]
[1727919511546,0.171196,61206.0,61204.0,0.081697]
[1727919512146,0.0817,61203.0,61200.0,0.081702]
[1727919512347,0.0817,61203.0,61201.0,0.081701]
[1727919512546,0.0817,61203.0,61202.0,0.001]
[1727919513256,0.17,61205.0,61196.0,0.3608]
[1727919513441,0.081699,61203.0,61200.0,0.081703]
[1727919513643,0.081699,61203.0,61196.0,0.53196]
[1727919513950,0.082699,61203.0,61202.0,0.001]
[1727919514550,0.003,61203.0,61202.0,0.0827]
[1727919515151,0.001,61203.0,61202.0,0.0827]
[1727919515353,0.003,61203.0,61202.0,0.0837]
[1727919515543,0.002,61203.0,61202.0,0.0827]
[1727919516154,0.003,61203.0,61202.0,0.0837]
[1727919516652,0.003,61203.0,61202.0,0.0827]
[1727919516954,0.003,61203.0,61202.0,0.0837]
[1727919517145,0.002,61203.0,61202.0,0.0837]
[1727919520458,0.083699,61203.0,61202.0,0.0837]
[1727919521358,0.002,61203.0,61202.0,0.0837]
[1727919527748,0.07358525,61203.0,61202.0,0.0837]
[1727919528168,0.12374565,61203.0,61202.0,0.0837]
[1727919529859,0.002,61203.0,61202.0,0.0837]
[1727919530058,0.12374516,61203.0,61202.0,0.17]
[1727919530654,0.09217848,61203.0,61202.0,0.17]
[1727919530984,0.09217848,61203.0,61202.0,0.2517]
[1727919531557,0.081685,61214.0,61202.0,1.34186]
[1727919531767,0.17945348,61203.0,61202.0,0.0817]
[1727919531954,0.17945348,61204.0,61203.0,0.081699]
[1727919532154,0.081685,61214.0,61204.0,0.081698]
[1727919532155,0.17945348,61205.0,61204.0,0.081698]
[1727919532358,0.17945348,61206.0,61202.0,0.0817]
[1727919532557,0.17945348,61206.0,61205.0,0.081696]
[1727919532963,0.17944101,61206.0,61202.0,0.0817]
[1727919533159,0.05861203,61218.0,61205.0,0.5308]
[1727919533365,0.17,61221.0,61210.0,0.17]
[1727919533563,0.081689,61211.0,61209.0,0.081691]
[1727919534555,0.21065403,61210.0,61209.0,0.081691]
[1727919534961,0.081689,61211.0,61209.0,0.081691]
[1727919535168,0.0854,61214.0,61210.0,0.08169]
[1727919535669,0.001,61211.0,61210.0,0.08169]
[1727919536207,0.002,61211.0,61210.0,0.08169]
[1727919536668,0.001,61211.0,61210.0,0.08269]
[1727919536860,0.081687,61212.0,61210.0,0.08369]
[1727919538574,0.001,61211.0,61210.0,0.08369]
[1727919539073,0.001,61211.0,61210.0,0.002]
[1727919539074,0.082688,61211.0,61210.0,0.002]
[1727919539469,0.081688,61211.0,61210.0,0.002]
[1727919539665,0.1227056,61211.0,61210.0,0.002]
[1727919539867,0.082688,61211.0,61210.0,0.002]
[1727919540069,0.082688,61211.0,61210.0,0.001]
[1727919540365,0.083688,61211.0,61210.0,0.002]
[1727919541273,0.12370563,61211.0,61210.0,0.002]
[1727919541976,0.25432823,61211.0,61210.0,0.002]
[1727919542174,0.12370563,61211.0,61210.0,0.002]
[1727919542473,0.1237071,61211.0,61210.0,0.002]
[1727919542779,0.1237071,61211.0,61201.0,0.1738]
[1727919542780,0.23248137,61211.0,61208.0,0.17]
[1727919542975,0.14879337,61210.0,61209.0,0.08169]
[1727919544557,0.09018035,61210.0,61209.0,1.17181]
[1727919544770,0.09018035,61210.0,61209.0,1.21801]
[1727919544984,0.14879337,61210.0,61209.0,1.21801]
[1727919545185,0.36100238,61210.0,61209.0,1.21801]
[1727919545476,0.36100238,61210.0,61209.0,1.21901]
[1727919545477,0.30438936,61210.0,61209.0,1.21901]
[1727919545671,0.09418035,61210.0,61209.0,1.22001]
[1727919546172,0.15279337,61210.0,61209.0,1.22001]
[1727919546377,0.36500238,61210.0,61209.0,1.22001]
[1727919546788,0.36500238,61210.0,61209.0,0.62001]
[1727919546985,0.30636753,61210.0,61209.0,0.62001]
[1727919548990,0.36498055,61210.0,61209.0,0.62001]
[1727919549182,0.30636753,61210.0,61209.0,0.62001]
[1727919549791,0.21620901,61210.0,61209.0,0.12989]
[1727919549980,0.004,61210.0,61209.0,0.12989]
[1727919551286,0.004,61210.0,61209.0,0.08369]
[1727919552681,0.1354,61210.0,61209.0,0.08369]
[1727919553897,0.3054,61210.0,61209.0,0.002]
[1727919554190,0.78790381,61210.0,61209.0,0.002]
[1727919554402,0.0817,61202.0,61201.0,0.0038]
[1727919554686,0.0817,61202.0,61187.0,0.5308]
[1727919554687,0.21002431,61202.0,61193.0,0.085512]
[1727919554881,0.21002431,61202.0,61188.0,0.00625143]
[1727919554882,0.081705,61199.0,61194.0,0.081711]
[1727919555081,0.081705,61199.0,61196.0,0.081707]
[1727919556577,0.11071122,61199.0,61196.0,0.081707]
[1727919556778,0.11071122,61199.0,61196.0,0.001]
[1727919556779,0.081706,61198.0,61196.0,0.001]
[1727919557290,0.03100622,61199.0,61196.0,0.001]
[1727919557586,0.03300622,61199.0,61196.0,0.082708]
[1727919558178,0.004,61198.0,61196.0,0.083708]
[1727919558387,0.089706,61198.0,61196.0,0.002]
[1727919558799,0.221906,61198.0,61196.0,0.002]
[1727919558989,0.213906,61198.0,61196.0,0.002]
[1727919559579,0.213906,61198.0,61196.0,0.083708]
[1727919559580,0.1362,61198.0,61196.0,0.083708]
[1727919560691,0.1392,61198.0,61196.0,0.083708]
[1727919560890,0.220906,61198.0,61196.0,0.083708]
[1727919561083,0.220906,61198.0,61196.0,0.002]
[1727919561298,0.219906,61198.0,61196.0,0.002]
[1727919561591,0.081707,61197.0,61196.0,0.002]
[1727919562787,0.081707,61197.0,61196.0,0.001]
[1727919562984,0.084707,61197.0,61196.0,0.002]
[1727919563187,0.084707,61197.0,61196.0,0.253708]
[1727919563188,0.003,61197.0,61196.0,0.253708]
[1727919563395,0.003,61197.0,61196.0,1.343948]
[1727919563597,0.006,61197.0,61196.0,1.343948]
[1727919564102,0.006,61197.0,61196.0,0.743948]
[1727919564294,0.006,61197.0,61196.0,1.37328018]
[1727919564896,0.04501717,61197.0,61196.0,1.73308018]
[1727919565090,0.0450166,61197.0,61196.0,1.73308018]
[1727919565596,0.09517469,61197.0,61196.0,1.73308018]
[1727919565894,0.09417469,61197.0,61196.0,1.73208018]
[1727919566496,0.09317469,61197.0,61196.0,1.73208018]
[1727919566697,0.09617469,61197.0,61196.0,1.73208018]
[1727919566896,0.09617469,61197.0,61196.0,0.64184018]
[1727919567099,0.27533316,61197.0,61196.0,0.64184018]
[1727919567404,0.09517469,61197.0,61196.0,0.612508]
[1727919567697,0.1841693,61197.0,61196.0,0.612508]
[1727919568199,0.273344,61197.0,61196.0,0.612508]
[1727919568698,0.09217469,61197.0,61196.0,0.612508]
[1727919568897,0.09417469,61197.0,61196.0,0.612508]
[1727919569298,0.09217469,61197.0,61196.0,0.612508]
[1727919569492,0.09617469,61197.0,61196.0,0.612508]
[1727919569691,0.09617498,61197.0,61196.0,0.612508]
[1727919571794,0.0038,61208.0,61207.0,0.081694]
[1727919572002,0.39052081,61210.0,61209.0,0.081691]
[1727919572197,0.02972081,61210.0,61209.0,0.081691]
[1727919572391,0.081686,61213.0,61209.0,0.081691]
[1727919572897,0.081686,61213.0,61207.0,0.17]
[1727919572898,0.07399775,61214.0,61210.0,0.08169]
[1727919573093,0.02956276,61221.0,61210.0,0.08169]
[1727919573296,0.081672,61224.0,61220.0,0.17]
[1727919574006,0.081672,61224.0,61220.0,0.251676]
[1727919574592,0.081674,61222.0,61220.0,0.17]
[1727919574818,0.131,61227.0,61216.0,0.17]
[1727919575001,0.131,61227.0,61220.0,0.17]
[1727919575199,0.131,61227.0,61224.0,0.25167]
[1727919575394,0.212667,61227.0,61224.0,0.25167]
[1727919575595,0.08167,61225.0,61224.0,0.17]
[1727919575801,0.08167,61225.0,61220.0,0.253675]
[1727919576105,0.131,61227.0,61220.0,0.253675]
[1727919576304,0.081673,61223.0,61220.0,0.253675]
[1727919576505,0.081673,61223.0,61220.0,0.252675]
[1727919578106,0.081673,61223.0,61220.0,0.253675]
[1727919579811,0.081675,61221.0,61220.0,0.002]
[1727919580022,0.23042634,61221.0,61220.0,0.002]
[1727919580813,0.17182988,61221.0,61220.0,0.083675]
[1727919581903,0.23042634,61221.0,61220.0,0.083675]
[1727919583306,0.23042634,61221.0,61220.0,0.253675]
[1727919583307,0.14875134,61221.0,61220.0,0.253675]
[1727919584003,0.17789083,61221.0,61220.0,0.253675]
[1727919585411,0.17789083,61221.0,61220.0,0.172]
[1727919585807,0.17789083,61221.0,61220.0,0.17]
[1727919586004,0.17789083,61221.0,61220.0,0.251676]
[1727919586714,0.02913949,61221.0,61220.0,0.251676]
[1727919586919,0.08167,61225.0,61220.0,0.251676]
[1727919587116,0.08167,61225.0,61220.0,0.612476]
[1727919587354,0.131,61227.0,61224.0,0.17]
[1727919587516,0.131,61227.0,61224.0,0.251671]
[1727919587725,0.081669,61226.0,61224.0,0.251671]
[1727919588014,0.131,61227.0,61224.0,0.17]
[1727919588015,0.08167,61225.0,61224.0,0.17]
[1727919588214,0.08267,61225.0,61224.0,0.17]
[1727919588420,0.08367,61225.0,61224.0,0.17]
[1727919588809,0.08267,61225.0,61224.0,0.171]
[1727919589606,0.08367,61225.0,61224.0,0.172]
[1727919590325,0.08467,61225.0,61224.0,0.172]
[1727919594721,0.17482346,61225.0,61224.0,0.172]
[1727919595023,0.151749,61225.0,61224.0,0.083671]
[1727919598022,0.21879379,61225.0,61224.0,0.06666485]
[1727919598718,0.47806029,61225.0,61224.0,0.06666485]
[1727919598917,0.4110155,61225.0,61224.0,0.06666485]
[1727919599621,0.151749,61225.0,61224.0,0.06666485]
[1727919600131,0.151749,61225.0,61224.0,0.10996485]
[1727919600624,0.151749,61225.0,61224.0,0.06666485]
[1727919601018,0.15174299,61225.0,61224.0,0.06666485]
[1727919601216,0.15174299,61225.0,61224.0,0.06766485]
[1727919601421,0.15174299,61225.0,61224.0,0.001]
[1727919601723,0.15174299,61225.0,61224.0,0.082671]
[1727919601724,0.15074299,61225.0,61224.0,0.082671]
[1727919601924,0.04500451,61225.0,61224.0,0.083671]
[1727919602130,0.13560939,61225.0,61224.0,0.083671]
[1727919602331,0.04500451,61225.0,61224.0,0.083671]
[1727919602518,0.04500451,61225.0,61224.0,0.002]
[1727919603022,0.1520313,61225.0,61224.0,0.083671]
[1727919603323,0.24217833,61225.0,61224.0,0.083671]
[1727919603622,0.09514814,61225.0,61224.0,0.083671]
[1727919604717,0.15202732,61225.0,61224.0,0.083671]
[1727919604922,0.09514814,61225.0,61224.0,0.083671]
[1727919605922,0.32384545,61225.0,61224.0,0.083671]
[1727919606324,0.17681814,61225.0,61224.0,0.083671]
[1727919606920,0.17681814,61225.0,61224.0,0.002]
[1727919610024,0.21607657,61225.0,61224.0,0.002]
[1727919610243,0.21607713,61225.0,61224.0,0.002]
[1727919610442,0.3860776,61225.0,61224.0,0.002]
[1727919610628,0.51677035,61225.0,61224.0,0.002]
[1727919610932,0.081679,61218.0,61217.0,0.0038]
[1727919611130,0.081684,61214.0,61213.0,0.081684]
[1727919611319,0.3608,61215.0,61207.0,0.17]
[1727919611520,0.1354,61213.0,61205.0,0.0038]
[1727919611727,0.081695,61206.0,61204.0,0.3608]
[1727919612124,0.081696,61205.0,61204.0,0.3608]
[1727919612330,0.081691,61209.0,61207.0,0.001]
[1727919612534,0.08169,61210.0,61209.0,0.08169]
[1727919612731,0.08169,61210.0,61209.0,0.25169]
[1727919614536,0.08569,61210.0,61209.0,0.25269]
[1727919614927,0.08969,61210.0,61209.0,0.25369]
[1727919615839,0.08969,61210.0,61209.0,0.002]
[1727919616943,0.17986496,61210.0,61209.0,0.002]
[1727919617130,0.17886496,61210.0,61209.0,0.002]
[1727919617644,0.17786496,61210.0,61209.0,0.002]
[1727919619430,0.17786584,61210.0,61209.0,0.002]
[1727919619632,1.26798584,61210.0,61209.0,0.002]
[1727919619945,0.081698,61204.0,61203.0,0.0038]
[1727919620129,0.081704,61200.0,61198.0,0.081705]
[1727919620449,0.09017584,61199.0,61198.0,0.251705]
[1727919620835,0.1791664,61200.0,61198.0,0.17]
[1727919621035,0.09017584,61199.0,61198.0,0.251706]
[1727919621236,0.1791664,61200.0,61199.0,0.081704]
[1727919621431,0.27234798,61200.0,61199.0,0.081704]
[1727919622148,0.12335125,61200.0,61199.0,0.081704]
[1727919622444,0.12435125,61200.0,61199.0,0.081704]
[1727919623430,0.12835125,61200.0,61199.0,0.081704]
[1727919623837,0.30751765,61200.0,61199.0,0.081704]
[1727919624942,0.03816967,61200.0,61199.0,0.081704]
[1727919625144,0.03816967,61200.0,61195.0,0.081709]
[1727919625442,0.081707,61197.0,61192.0,0.3608]
[1727919627343,0.081707,61197.0,61192.0,0.442513]
[1727919627640,0.081707,61197.0,61194.0,0.081711]
[1727919627844,0.082707,61197.0,61194.0,0.081711]
[1727919628631,0.083707,61197.0,61194.0,0.081711]
[1727919630250,0.083707,61197.0,61192.0,0.3608]
[1727919630843,0.083707,61197.0,61192.0,0.442513]
[1727919631045,0.083707,61197.0,61192.0,0.36204]
[1727919631243,0.083707,61197.0,61191.0,0.0038]
[1727919635248,0.081714,61192.0,61191.0,0.0038]
[1727919635444,0.081716,61190.0,61189.0,0.081717]
[1727919637053,0.081716,61190.0,61189.0,0.088717]
[1727919637753,0.081716,61190.0,61189.0,0.094717]
[1727919639155,0.11158128,61190.0,61189.0,0.094717]
[1727919640041,0.20178393,61190.0,61189.0,0.094717]
[1727919642754,0.11158128,61190.0,61189.0,0.094717]
[1727919642949,0.20178204,61190.0,61189.0,0.094717]
[1727919643149,0.12006604,61190.0,61189.0,0.094717]
[1727919643352,0.09020076,61190.0,61189.0,0.264717]
[1727919644940,0.09020076,61190.0,61189.0,0.094717]
[1727919645346,0.09020076,61190.0,61189.0,0.264717]
[1727919646049,0.09020076,61190.0,61189.0,0.094717]
[1727919646954,0.111646,61193.0,61189.0,0.094717]
[1727919647158,0.111646,61193.0,61189.0,0.013]
[1727919647355,0.111646,61193.0,61192.0,0.081714]
[1727919650163,0.111646,61193.0,61192.0,0.084714]
[1727919650951,0.111646,61193.0,61192.0,0.087714]
[1727919651356,0.111646,61193.0,61192.0,0.006]
[1727919653308,0.081726,61183.0,61182.0,0.0038]
[1727919653453,0.081728,61181.0,61178.0,0.081732]
[1727919653648,0.081728,61181.0,61177.0,0.09126712]
[1727919653852,0.081728,61181.0,61180.0,0.08173]
[1727919654458,0.054728,61181.0,61180.0,0.08173]
[1727919654863,0.14494143,61181.0,61180.0,0.08173]
[1727919655162,0.32437514,61181.0,61180.0,0.08173]
[1727919655416,0.14494143,61181.0,61180.0,0.08173]
[1727919655663,0.23433457,61181.0,61180.0,0.09573]
[1727919655859,0.325548,61181.0,61180.0,0.10473]
[1727919656064,0.14594143,61181.0,61180.0,0.10473]
[1727919656260,0.2353348,61181.0,61180.0,0.10473]
[1727919656562,0.17551809,61181.0,61180.0,0.10473]
[1727919657256,0.12079009,61181.0,61180.0,0.10473]
[1727919658262,0.21013544,61181.0,61180.0,0.10473]
[1727919658466,0.12079009,61181.0,61180.0,0.10473]
[1727919659161,0.30034488,61181.0,61180.0,0.10473]
[1727919659958,0.37336279,61181.0,61180.0,0.10473]
[1727919660156,0.28402143,61181.0,61180.0,0.10473]
[1727919660667,0.12079009,61181.0,61180.0,0.10473]
[1727919661863,0.11979009,61181.0,61180.0,0.09573]
[1727919662062,0.001,61181.0,61180.0,0.22930687]
[1727919662265,0.002,61181.0,61180.0,0.21530687]
[1727919662702,0.001,61181.0,61180.0,0.20630687]
[1727919662878,0.002,61181.0,61180.0,0.21330687]
[1727919664389,0.081726,61183.0,61180.0,0.21330687]
[1727919664579,0.081726,61183.0,61182.0,0.08091893]
[1727919665687,0.081726,61183.0,61182.0,0.005]
[1727919666080,0.081726,61183.0,61182.0,0.08591893]
[1727919666276,0.081726,61183.0,61182.0,0.21049641]
[1727919667096,0.16323134,61184.0,61183.0,0.081726]
[1727919667283,0.16323134,61184.0,61183.0,0.73710348]
[1727919667587,0.16323134,61184.0,61183.0,1.3244064]
[1727919667780,0.16323134,61184.0,61183.0,1.22742348]
[1727919667980,0.16323134,61184.0,61183.0,0.8340864]
[1727919668185,0.16323134,61184.0,61183.0,1.9244064]
[1727919668377,0.16323134,61184.0,61183.0,1.83242348]
[1727919668578,0.16323134,61184.0,61183.0,1.83642348]
[1727919668781,0.16323134,61184.0,61183.0,1.93345657]
[1727919669086,0.16323134,61184.0,61183.0,1.83642348]
[1727919669284,0.02991497,61190.0,61189.0,0.081718]
[1727919669481,0.08171,61195.0,61189.0,0.12457748]
[1727919669687,0.08171,61195.0,61192.0,0.081712]
[1727919669985,0.04002565,61194.0,61192.0,0.081712]
[1727919670290,0.04002581,61193.0,61192.0,0.081714]
[1727919671390,0.04002581,61193.0,61192.0,0.082714]
[1727919671979,0.04502581,61193.0,61192.0,0.082714]
[1727919672484,0.05002581,61193.0,61192.0,0.083714]
[1727919672891,0.10019514,61193.0,61192.0,0.002]
[1727919673194,0.10019514,61193.0,61185.0,0.0038]
[1727919673391,0.081724,61185.0,61183.0,0.3608]
[1727919673587,0.13419514,61184.0,61183.0,0.3608]
[1727919673793,0.13421067,61184.0,61183.0,0.3608]
[1727919674597,0.21593467,61184.0,61183.0,0.3648]
[1727919674894,0.21593467,61184.0,61183.0,0.004]
[1727919675193,0.081726,61183.0,61182.0,0.081727]
[1727919675385,0.17193667,61183.0,61182.0,0.081727]
[1727919676487,0.09021067,61183.0,61178.0,0.081732]
[1727919676692,0.22858835,61183.0,61182.0,0.005]
[1727919676898,0.48980192,61183.0,61182.0,0.01]
[1727919677098,0.252726,61183.0,61182.0,0.01]
[1727919677332,0.082726,61183.0,61182.0,0.01]
[1727919677495,0.11253013,61183.0,61182.0,0.01]
[1727919678997,0.11353013,61183.0,61182.0,0.005]
[1727919679199,0.28353013,61183.0,61182.0,0.005]
[1727919679693,0.28253013,61183.0,61182.0,0.005]
[1727919679888,0.28253013,61183.0,61182.0,0.01]
[1727919684200,0.251736,61175.0,61174.0,0.0038]
[1727919684414,0.081746,61168.0,61167.0,0.00245156]
[1727919684997,0.17198016,61168.0,61167.0,0.08419856]
[1727919685911,0.09023416,61168.0,61167.0,0.081747]
[1727919686299,0.09123416,61168.0,61167.0,0.083747]
[1727919686795,0.09023416,61168.0,61167.0,0.081747]
[1727919687002,0.09123416,61168.0,61167.0,0.081747]
[1727919687593,0.085533,61178.0,61167.0,1.09044]
[1727919687594,0.09021789,61177.0,61167.0,1.09044]
[1727919687810,0.09021789,61177.0,61165.0,0.5308]
[1727919687811,0.09021466,61176.0,61175.0,0.081736]
[1727919688103,0.09021466,61176.0,61175.0,0.251736]
[1727919688306,0.09021466,61176.0,61175.0,1.342136]
[1727919688507,0.16300714,61176.0,61175.0,1.342136]
[1727919688694,0.21318746,61176.0,61175.0,1.342136]
[1727919688900,0.2532218,61176.0,61175.0,1.342136]
[1727919689103,0.2532218,61176.0,61175.0,1.702936]
[1727919689293,0.09921466,61176.0,61175.0,1.702936]
[1727919689494,0.2622218,61176.0,61175.0,1.702936]
[1727919689697,0.03327404,61189.0,61176.0,0.572135]
[1727919689895,0.03327404,61189.0,61188.0,0.081719]
[1727919689896,0.02947404,61189.0,61188.0,0.081719]
[1727919690101,0.081715,61192.0,61188.0,0.081719]
[1727919691301,0.081715,61192.0,61189.0,0.081718]
[1727919691797,0.0444,61195.0,61194.0,0.081711]
[1727919692102,0.12611,61195.0,61194.0,0.081711]
[1727919692307,0.12611,61195.0,61191.0,0.17]
[1727919692308,0.081712,61193.0,61191.0,0.17]
[1727919692498,0.081712,61193.0,61188.0,0.001]
[1727919692706,0.005,61192.0,61190.0,0.081715]
[1727919692940,0.081715,61191.0,61189.0,0.001]
[1727919694002,0.085715,61191.0,61189.0,0.001]
[1727919694506,0.004,61191.0,61189.0,0.001]
[1727919694708,0.004,61191.0,61190.0,0.081716]
[1727919695499,0.01,61191.0,61190.0,0.081716]
[1727919696206,0.087715,61191.0,61190.0,0.001]
[1727919696400,0.013,61191.0,61190.0,0.002]
[1727919696601,0.007,61191.0,61190.0,0.001]
[1727919696894,0.011,61191.0,61190.0,0.001]
[1727919697110,0.092715,61191.0,61190.0,0.001]
[1727919697909,0.085715,61191.0,61188.0,0.081718]
[1727919698143,0.090715,61191.0,61188.0,0.081718]
[1727919698304,0.009,61191.0,61188.0,0.081718]
[1727919698603,0.122917,61190.0,61188.0,0.081718]
[1727919699800,0.0412,61190.0,61189.0,0.081718]
[1727919700002,0.002,61190.0,61189.0,0.081718]
[1727919700915,0.005,61190.0,61189.0,0.081718]
[1727919701703,0.002,61190.0,61189.0,0.081718]
[1727919701908,0.006,61190.0,61189.0,0.081718]
[1727919702341,0.004,61190.0,61189.0,0.081718]
[1727919702508,0.007,61190.0,61189.0,0.081718]
[1727919703920,0.007,61190.0,61179.0,0.10838887]
[1727919703921,0.49032,61189.0,61173.0,0.04845722]
[1727919704132,0.081747,61167.0,61166.0,0.00084]
[1727919704326,0.081747,61167.0,61157.0,0.3608]
[1727919704327,0.081754,61162.0,61157.0,0.3608]
[1727919704614,0.00245329,61175.0,61161.0,0.17]
[1727919704814,0.081743,61171.0,61161.0,0.251754]
[1727919705007,0.08419029,61175.0,61169.0,0.17]
[1727919705416,0.08419029,61175.0,61167.0,0.0865]
[1727919705802,0.08419029,61175.0,61173.0,0.001]
[1727919706009,0.11377598,61175.0,61173.0,0.001]
[1727919706209,0.11377598,61175.0,61173.0,0.002]
[1727919706614,0.00245329,61175.0,61173.0,0.172]
[1727919706809,0.00845329,61175.0,61173.0,0.171]
[1727919707011,0.09022209,61174.0,61173.0,0.171]
[1727919707208,0.2190944,61174.0,61173.0,0.171]
[1727919707515,0.09022209,61174.0,61173.0,0.172]
[1727919708014,1.27052209,61174.0,61130.0,0.3608]
[1727919708224,0.31648969,61142.0,61131.0,0.125794]
[1727919708410,0.14648969,61137.0,61132.0,0.17]
[1727919708717,0.16276469,61137.0,61134.0,0.17]
[1727919709123,0.25298678,61136.0,61131.0,0.044]
[1727919709314,0.1463791,61132.0,61131.0,0.044]
[1727919709513,0.09022209,61132.0,61131.0,0.044]
[1727919709817,0.04003763,61132.0,61131.0,1.13476]
[1727919710125,0.08422209,61132.0,61131.0,1.13476]
[1727919710424,0.05018446,61132.0,61131.0,1.13476]
[1727919710622,0.1462527,61133.0,61131.0,1.13476]
[1727919710821,0.05018446,61132.0,61131.0,0.644]
[1727919711021,0.05121306,61132.0,61131.0,0.65]
[1727919711220,0.002,61132.0,61131.0,1.14176]
[1727919713249,0.002,61132.0,61131.0,0.54176]
[1727919713445,0.002,61132.0,61131.0,0.007]
[1727919713746,0.083794,61132.0,61131.0,0.007]
[1727919713940,0.13401195,61132.0,61131.0,0.007]
[1727919714935,0.13401278,61132.0,61131.0,0.007]
[1727919715149,0.16208579,61132.0,61131.0,0.007]
[1727919715744,0.16208579,61132.0,61131.0,0.087]
[1727919719548,0.16208579,61132.0,61131.0,0.168795]
[1727919719749,0.16208579,61132.0,61131.0,0.829555]
[1727919719944,0.17905677,61136.0,61131.0,0.74776]
[1727919720139,0.3608,61140.0,61132.0,0.0418]
[1727919721444,0.001,61136.0,61135.0,0.08179]
[1727919722184,0.3618,61140.0,61136.0,0.081788]
[1727919722845,0.3608,61140.0,61136.0,0.081788]
[1727919723237,0.3618,61140.0,61137.0,0.081787]
[1727919723442,0.3618,61140.0,61138.0,0.081785]
[1727919723751,0.3618,61140.0,61139.0,0.081784]
[1727919724450,0.002,61140.0,61139.0,0.081784]
[1727919725143,0.001,61140.0,61139.0,0.081784]
[1727919725347,0.002,61140.0,61139.0,0.083784]
[1727919726751,0.17,61146.0,61140.0,0.081782]
[1727919727046,0.17,61146.0,61139.0,0.002]
[1727919727047,0.251776,61146.0,61141.0,0.081781]
[1727919727247,0.081777,61145.0,61141.0,0.081781]
[1727919728247,0.081777,61145.0,61140.0,0.003]
[1727919728248,0.171,61146.0,61140.0,0.003]
[1727919728451,0.171,61146.0,61144.0,0.081777]
[1727919728644,0.17,61146.0,61144.0,0.081777]